Cogmind - Beta 14 @@@ ROGUE MODE // 2025.03.23 @ 16:49:42 Player: Zeta Lockhart Result: Destroyed by G-47 Trooper with Particle Gun Performance ------------- Evolutions (0) 0 Regions Visited (2) 400 Robots Destroyed (20) 100 Value Destroyed (260) 260 Prototype IDs (0) 0 Alien Tech Used (0) 0 Bonus (0) 0 TOTAL SCORE: 760 Bonus ------- None Cogmind --------- Core Integrity 0/250 Matter 299/300 Energy 129/160 System Corruption 0% Temperature Cool (9) Movement Walking (180) Ox1 Location -10/Mines Parts ------- > --- POWER (1) -------- Light Nuclear Core > --- PROPULSION (2) --- VSS Leg > --- UTILITY (2) ------ Improved Heat Sink Small Storage Unit > --- WEAPON (2) ------- Heavy Particle Cannon Light Assault Rifle > --- INVENTORY (8) ---- Ion Engine Light Ion Engine Wheel Wheel Improved Utility Shielding Small Laser Light Assault Rifle Light Assault Rifle Peak State ------------ > --- POWER ------------ Light Nuclear Core > --- PROPULSION ------- VSS Leg > --- UTILITY ---------- Improved Heat Sink Small Storage Unit > --- WEAPON ----------- Heavy Particle Cannon Light Assault Rifle > --- INVENTORY -------- Ion Engine Light Ion Engine Wheel Wheel Improved Utility Shielding Small Laser Light Assault Rifle Light Assault Rifle [Rating: 15] Favorites ----------- Power Light Ion Engine Engine Light Ion Engine Power Core Light Nuclear Core Propulsion Compact Wheel Leg VSS Leg Wheel Compact Wheel Utility Small Storage Unit Device Improved Heat Sink Storage Small Storage Unit Weapon Light Assault Rifle Energy Gun Particle Gun Energy Cannon Heavy Particle Cannon Ballistic Gun Light Assault Rifle Build | -11 -10 -10 ------- Run | Yrd Mat Min Slots Evolved . | . . . Power . | . . . Propulsion . | . . . Utility . | . . . Weapon . | . . . Parts Attached 22 | 7 8 7 Power 5 | 1 1 3 Engine 4 | 1 1 2 Core 1 | . . 1 Reactor . | . . . Propulsion 5 | 2 2 1 Treads . | . . . Leg 1 | . . 1 Wheel 4 | 2 2 . Hover . | . . . Flight . | . . . Utility 5 | 2 2 1 Device 3 | . 2 1 Storage 2 | 2 . . Processor . | . . . Hackware . | . . . Protection . | . . . Artifact . | . . . Weapon 7 | 2 3 2 Energy Gun 3 | 1 2 . Energy Cannon 1 | . . 1 Ballistic Gun 3 | 1 1 1 Ballistic Cannon . | . . . Launcher . | . . . Special Weapon . | . . . Impact Weapon . | . . . Slashing Weapon . | . . . Piercing Weapon . | . . . Special Melee Weapon . | . . . Unidentified Prototypes . | . . . Parts Lost 10 | . 3 7 Power 2 | . . 2 Propulsion 4 | . 2 2 Utility 2 | . 1 1 Weapon 2 | . . 2 Highest Loss Streak 3 | . 2 3 To Critical Strikes . | . . . Average Slot Usage (%) 84 | . 96 73 Engine 12 | . 14 10 Leg 2 | . . 4 Wheel 13 | . 25 2 Device 11 | . 10 12 Storage 15 | . 17 14 Energy Gun 5 | . 12 . Ballistic Gun 21 | . 16 25 Peak Build Rating 15 | 7 9 15 Average Rating 7 | 4 7 8 On Entrance 5 | . 7 9 Naked Turns . | . . . Heaviest Build 18 | 15 15 18 Greatest Support 32 | 32 32 16 Greatest Overweight (x) 3 | . . 3 Average Overweight (x) . | . . 1 Largest Inventory Capacity 8 | 8 8 8 Average Capacity 7 | 6 8 8 Most Carried 8 | 5 7 8 Average Carried 5 | 3 5 5 Final Capacity 8 | 8 8 8 Final Carried 8 | 4 6 8 Class Distribution -------------------- 93% | Mutant 6% | Scavenger-Mutant Dominant Class ---------------- Mutant | -10/Materials Mutant | -10/Mines Resources | -11 -10 -10 ----------- Run | Yrd Mat Min Matter Collected 503 | 271 114 118 Remotely 43 | . 43 . Salvage Created 579 | 84 252 243 Parts 32 | 4 16 12 Haulers Intercepted . | . . . Recyclers Shooed 4 | . 1 3 Parts Field Recycled . | . . . Retrieved Matter . | . . . Parts Self-Destructed . | . . . Prevented . | . . . Kills | -11 -10 -10 ------- Run | Yrd Mat Min Combat Hostiles Destroyed 15 | . 5 10 Guns 13 | . 5 8 Cannons 2 | . . 2 Classes Destroyed 4 | 1 2 1 Worker 1 | . . 1 Recycler 4 | 1 2 1 Swarmer 12 | . 3 9 Grunt 3 | . 2 1 Best Kill Streak 4 | 1 4 4 Combat Bots Only 3 | . 3 3 Max Kills in Single Turn 1 | 1 1 1 Gunslinging . | . . . Exploded . | . . . Melee . | . . . Uniques/NPCs Destroyed . | . . . Combat | -11 -10 -10 -------- Run | Yrd Mat Min Hostile Shots Fired 135 | . 47 88 Missed 37 | . 10 27 Damage Taken 872 | . 362 510 Core 259 | . 131 128 Absorbed by Shields . | . . . Core Remaining (%) 100 | 100 . . Volleys Fired 79 | 1 32 46 Largest 2 | 2 2 2 Hottest 95 | 60 85 95 Shots Fired 155 | 2 63 90 Gun 145 | 2 63 80 Cannon 10 | . . 10 Launcher . | . . . Special . | . . . Kinetic 122 | 1 44 77 Thermal 33 | 1 19 13 Explosive . | . . . Electromagnetic . | . . . Robot Hit Streak 9 | 2 9 5 Robot Miss Streak 4 | . 3 4 Penetration Max . | . . . Secondary Targets 5 | . 4 1 Max Gunslinging Chain 1 | . 1 1 Shots Hit Robots 83 | 2 38 43 Core Hits 29 | 2 13 14 Critical Kills . | . . . Critical Parts Destroyed 2 | . 1 1 Critical Strikes 3 | . 2 1 Burn 1 | . 1 . Destroy 2 | . 1 1 Melee Attacks . | . . . Impact . | . . . Slashing . | . . . Piercing . | . . . Sneak Attacks . | . . . Combat Hostiles . | . . . Follow-up Attacks . | . . . Damage Inflicted 921 | 18 408 495 Guns 796 | 18 408 370 Cannons 125 | . . 125 Explosions . | . . . Melee . | . . . Ramming . | . . . Kinetic 573 | 6 231 336 Thermal 348 | 12 177 159 Explosive . | . . . Electromagnetic . | . . . Impact . | . . . Slashing . | . . . Piercing . | . . . Highest Corruption . | . . . Average Corruption . | . . . Corruption Purged . | . . . Corruption Blocked . | . . . Overload Shots . | . . . Overflow Damage 18 | . . 18 Projectiles 18 | . . 18 Explosions . | . . . Melee . | . . . Knockbacks . | . . . Impact . | . . . Kinetic . | . . . Secondary . | . . . Self-Inflicted Damage . | . . . Shots . | . . . Rammed . | . . . Targets Rammed . | . . . Kicked . | . . . Crushed . | . . . Highest Temperature 72 | 20 48 72 Average Temperature 20 | 15 18 22 Received Heat Transfer 126 | . 108 18 Siege Activations . | . . . Robots Corrupted . | . . . Combat Hostiles . | . . . Parts Fried . | . . . Impact Corruptions . | . . . Robots Melted . | . . . Combat Hostiles . | . . . Parts Melted . | . . . Heat Transferred 754 | 25 470 259 Parts Sabotaged . | . . . Parts Stolen . | . . . Parts Stripped . | . . . Power Chain Reactions . | . . . Alert | -11 -10 -10 ------- Run | Yrd Mat Min Peak Influence 244 | 5 103 244 Initial 39 | . 3 39 Average 88 | 2 41 143 Maximum Alert Level 1 | . . 1 Low Security (%) 95 | 100 100 90 Level 1 4 | . . 9 Level 2 . | . . . Level 3 . | . . . Level 4 . | . . . Level 5 . | . . . High Security . | . . . Max Security . | . . . Squads Dispatched 1 | . . 1 Investigation 1 | . . 1 Extermination . | . . . Reinforcement . | . . . Assault . | . . . Garrison . | . . . Intercept . | . . . Searches Triggered . | . . . Construction Impeded . | . . . Haulers Reinforced . | . . . Active Scanning Responses . | . . . Cargo Convoy Interrupts . | . . . Stealth | -11 -10 -10 --------- Run | Yrd Mat Min Distress Signals 1 | . 1 . Communications Jammed . | . . . Distress Signals . | . . . Times Spotted 18 | . 7 11 Peak Tracking Total 3 | . 3 3 Tactical Retreats . | . . . Traps | -11 -10 -10 ------- Run | Yrd Mat Min Traps Triggered . | . . . Indirectly . | . . . Trap Hack Attempts . | . . . Triggered . | . . . Disarmed . | . . . Reprogrammed . | . . . Reused . | . . . Traps Extracted . | . . . Installed . | . . . Triggered . | . . . Machines | -11 -10 -10 ---------- Run | Yrd Mat Min Machines Disabled . | . . . Max in Single Turn . | . . . Machines Repaired . | . . . Machines Dismantled . | . . . Machines Sabotaged . | . . . Overloaded Fab Kills . | . . . Hacking | -11 -10 -10 --------- Run | Yrd Mat Min Machines Accessed 2 | . 1 1 Terminals 1 | . 1 . Fabricators . | . . . Repair Stations . | . . . Recycling Units . | . . . Scanalyzers . | . . . Garrison Access . | . . . Total Hacks 4 | . 3 1 Successful 2 | . 1 1 Failed 2 | . 2 . Catastrophic . | . . . Database Lockouts . | . . . Manual . | . . . Terminals 3 | . 3 . Fabricators . | . . . Repair Stations . | . . . Recycling Units . | . . . Scanalyzers . | . . . Garrison Access . | . . . Terminal Hacks 2 | . 1 1 Open Door 1 | . . 1 Zone Layout 1 | . 1 . Fabricator Hacks . | . . . Repair Station Hacks . | . . . Recycling Unit Hacks . | . . . Scanalyzer . | . . . Garrison Access Hacks . | . . . Unauthorized Hacks . | . . . Terminals . | . . . Fabricators . | . . . Repair Stations . | . . . Recycling Units . | . . . Scanalyzers . | . . . Garrison Access . | . . . Data Cores Recovered . | . . . Used . | . . . Hacking Detections 1 | . 1 . Full Trace Events . | . . . Feedback Events . | . . . Feedback Blocked . | . . . Robot Schematics Acquired . | . . . Robots Built . | . . . Authchips . | . . . Time . | . . . Total Robot Build Rating . | . . . Part Schematics Acquired . | . . . Parts Built . | . . . Authchips . | . . . Time . | . . . Total Part Build Rating . | . . . Parts Repaired . | . . . Time . | . . . Parts Recycled . | . . . Recycled Matter . | . . . Retrieved Matter . | . . . Retrieved Components . | . . . Parts Scanalyzed . | . . . Part Schematics Acquired . | . . . Parts Damaged . | . . . Bothacking | -11 -10 -10 ------------ Run | Yrd Mat Min Used RIF Installer . | . . . Robots Hacked . | . . . Non-combat . | . . . Combat . | . . . Robot Hacks Applied . | . . . Relay Couplers Released . | . . . Fabnet Peak Effective % . | . . . Robots Rewired . | . . . Allies Hacked . | . . . Hacks Repelled . | . . . Allies | -11 -10 -10 -------- Run | Yrd Mat Min Total Allies . | . . . Largest Group . | . . . Highest-Rated Group . | . . . Highest-Rated Ally . | . . . Total Orders . | . . . Ally Attacks . | . . . Total Damage . | . . . Kills . | . . . Allies Corrupted . | . . . Allies Melted . | . . . Intel | -11 -10 -10 ------- Run | Yrd Mat Min Robot Analysis Total . | . . . Derelict Logs Recovered 1 | . . 1 Drone Launches . | . . . Drone Recoveries . | . . . Exploration | -11 -10 -10 ------------- Run | Yrd Mat Min Turns Passed 678 | 61 281 336 Spaces Moved 354 | 45 172 137 Core 73 | 9 . 64 Treads . | . . . Legs 58 | . . 58 Wheels 223 | 36 172 15 Hover . | . . . Flight . | . . . Fastest Speed 50 | 50 100 90 Average Speed 116 | 90 100 145 Slowest Speed 200 | 100 100 200 Overloaded Moves . | . . . Propulsion Burnouts . | . . . Robots Hopped . | . . . Cave-ins Triggered . | . . . Exploration Rate (%) 23 | 4 33 34 Regions Visited 2 Branch Regions 1 Pre-discovered Areas 1 | . . 1 Known Exits Taken . | . . . Unknown Exits Taken 2 | 1 1 . Scrap Searched . | . . . Spaces Dug . | . . . Terrain Destroyed 5 | . . 5 Melee . | . . . Projectile 5 | . . 5 AOE . | . . . Terrain Rammed . | . . . Walls Destroyed . | . . . Machines Disabled . | . . . Actions | -11 -10 -10 --------- Run | Yrd Mat Min Total 485 | 63 225 197 Wait 5 | . 5 . Move 352 | 44 171 137 Hop . | . . . Pick Up 25 | 11 7 7 Fast Attach 1 | . . 1 Attach 16 | 7 4 5 Detach . | . . . Swap 5 | . 4 1 Drop 2 | . 2 . Fire 79 | 1 32 46 Melee . | . . . Ram . | . . . Kick . | . . . Crush . | . . . Escape Stasis . | . . . Rewire . | . . . Trap . | . . . Miscellaneous . | . . . Route ------- -11/Scrapyard -10/Materials (discovered 2 exits: *Min x2) -10/Mines History --------- Turn | Location | Event 6 | -11/Scrapyard | Discovered new exit (range 15) 62 | -11/Scrapyard | Entered Materials 117 | -10/Materials | Discovered new exit (range 13) 134 | -10/Materials | Discovered new exit (range 16) 290 | -10/Materials | Core integrity fell below 50% 343 | -10/Materials | Entered Mines 385 | -10/Mines | Lost 3 parts (1n1u1w) 436 | -10/Mines | Learned location of Storage (-7) 495 | -10/Mines | Met a Derelict shopkeep closing up shop 629 | -10/Mines | Core integrity fell below 20% 652 | -10/Mines | Build established: Mutant 679 | -10/Mines | Destroyed by G-47 Trooper with Particle Gun Last Messages --------------- 00506_ Acquired Imp. Utility Shielding. 00509_ Acquired Hvy. Particle Cannon. 00562_ Acquired VSS Leg. 00575_ T-07 Excavator is excavating. 00625_ Lgt. Assault Rifle destroyed. 00631_ Lgt. Ion Engine destroyed. 00632_ S-10 Pest destroyed. 00637_ Destroyed Flight Unit. 00643_ S-10 Pest destroyed. 00646_ Destroyed Tractor Beam. 00648_ Destroyed Flight Unit. 00648_ S-10 Pest destroyed. 00654_ R-06 Scavenger destroyed. 00659_ Acquired Lgt. Assault Rifle. 00661_ Acquired Wheel. 00662_ Acquired 41 matter. 00666_ Acquired Lgt. Ion Engine. 00669_ Acquired 17 matter. 00671_ Acquired 3 matter. 00676_ G-34 Mercenary destroyed. Map ----- +----------------------------------------------------+ | ??????######### #???????# #???????????????????? | | ??????# = #????????####???????????????????? | | ??????# %= #???????????????????????????????? | | ??????# #########???????????????????????????????? | | ??????# #???????????????????????????????????????? | | ??????# ######## ???????????????????????????? | | ????### ??????????????????????????? | | ???## ### #????????????????????????????????? | | ??## #????????????????????????????????????? | | ??# #????????????????????????????????????? | | ??# ##????????????????????????????????????? | | ??## #####?????????????????????????????????????? | | ???## ##?????????????????????????????????????????? | | ????# #??????????????????????????????????????????? | | ????# ####???????????????????????????????????????? | | ????# #???????????????????????????????????????? | | ????### #???????????????????????????????????????? | | ??????# ##??????????????????????????????????????? | | ??????# ##?????????????????????????????????????? | | ###?### ##????????????????????????????????????? | | " ### #???????######???????????????????????? | | " !#X #??????## ###??#??????????????????? | | " ##??????# ;#? #??????????????????? | | "/ ##???????# % # #### #????????? | | "! !# ######??## t%=* ;; ????????? | | "!### #?## #=;@ % t #????????? | | ###?### #### ### ##### g #?????????? | | ??????## #??# ## ##???# %= #?????????? | | ???????# #??# # ###??### ##?????????? | | ???###?# #### ##????? #??????????? | | ??## ## ## ##????? ##??????????? | | ?## # # #??????? #???????????? | | ?# #???????? #???????????? | | ?# #??????????????????????? | | ?## ##### #??????????????????????? | | ??# ###???## #??????????????????????? | | ??###???????# #??????????????????????? | | ???????????# ##??????????????????????? | | ???????????# #???????????????????????? | | ???????????## ### #???????????????????????? | | ????????????### ##??# ##???????????????????????? | | ??????????????####????###????????????????????????? | | ?????????????????????????????????????????????????? | | ?????????????????????????????????????????????????? | | | | | | | | | | | | | +----------------------------------------------------+ Best States ------------- Heat Dissipation 39 Energy Generation 14 Energy Capacity 160 Matter Stores 300 Matter Capacity 300 Sight Range 16 Terrain Scan Density 10 Evasion (%) 57 Item Schematics ----------------- None Robot Schematics ------------------ None Fabricated ------------ Nothing Alien Tech Used ----------------- None Achievements -------------- None Challenges ------------ None Game ------ Seed SalvagingDeliveryScreen Manual? 0 Play Time 00:07:30 Cumulative 61.7 hours Start 2025.03.23 @ 16:42:17 End 2025.03.23 @ 16:49:42 Sessions 1 Manual Loads 0 Difficulty Rogue Special Mode None Game No. 61 Rogue 61 Adventurer 0 Explorer 0 Win Type - Total 0 Types 0/0/0/0/0/0/0/0/0 Lore% 6 Gallery% 34 Achievement% 26 Wizard Run 0 Options --------- Layout 0 ASCII 0 Keyboard 0 Movement Mouse Keybinds 0 Fullscreen 2 Font 12/Smallcaps Map View 41x27 Zoom Use 99% Tactical HUD 1 Map Filters NONE Filters NONE Steam 1 RUN: 3d2af09c-0f4f-4548-9d68-3a5ba0b4a808